Cogmind - Beta 16 @@@ ROGUE MODE // 2026.01.17 @ 12:59:58 Player: CloudSeaKing Result: Destroyed by H-66 Slayer with Gauss Rifle Performance ------------- Evolutions (5) 2500 Regions Visited (17) 3400 Robots Destroyed (155) 775 Value Destroyed (5571) 5571 Prototype IDs (35) 700 Alien Tech Used (0) 0 Bonus (868) 868 TOTAL SCORE: 13814 Bonus ------- High Alert Combat Kills 56 Follower Combat Kills 108 Entered Garrisons 200 Aligned with FarCom 300 Met Imprinter 300 Friendly Fire -96 Cogmind --------- Core Integrity 0/1000 Matter 123/300 Energy 100/100 System Corruption 4% Temperature Hot (222) Movement Core (1350) Ox26 Location -5/Garrison Parts ------- > --- POWER (2) -------- (None) > --- PROPULSION (4) --- (None) > --- UTILITY (7) ------ Huge Storage Unit Advanced Targeting Computer > --- WEAPON (4) ------- (None) > --- INVENTORY (25) --- High-capacity Matter Pod (200) HERF Cannon Improved Heavy Machine Gun XL Autogun Subcomponent Rocket Launcher Improved Grenade Launcher Improved Grenade Launcher Missile Launcher Heavy Missile Launcher Peak State ------------ > --- POWER ------------ Improved Deuterium Engine Improved Deuterium Engine > --- PROPULSION ------- Armored Huge Wheel Armored Huge Wheel > --- UTILITY ---------- Advanced Heat Sink Huge Storage Unit Advanced Targeting Computer Improved Medium Armor Plating Improved Medium Armor Plating Improved Medium Armor Plating Hardlight Generator > --- WEAPON ----------- Neutron Cannon Hypervelocity Gauss Rifle Improved Heavy Machine Gun Improved Heavy Machine Gun > --- INVENTORY -------- Improved Deuterium Engine Armored Huge Wheel Armored Huge Wheel Armored Huge Wheel High-capacity Matter Pod HERF Cannon HERF Cannon Improved Heavy Machine Gun XL Autogun Subcomponent XL Autogun Subcomponent XL Autogun Subcomponent XL Autogun Subcomponent Rocket Launcher Improved Grenade Launcher Improved Grenade Launcher Missile Launcher Heavy Missile Launcher Molecular Deconstructor CR-A16's Pointy Stick [Rating: 83] Favorites ----------- Power Ion Engine Engine Ion Engine Power Core Light Nuclear Core Propulsion Light Treads Treads Light Treads Leg Carbon-fiber Leg Wheel Armored Huge Wheel Hover Unit Gravmag System Utility Small Storage Unit Device Improved Heat Sink Storage Small Storage Unit Processor Advanced Targeting Computer Protection Improved Medium Armor Plating Weapon XL Autogun Subcomponent Energy Gun Pulse Rifle Energy Cannon Advanced Beam Cannon Ballistic Gun XL Autogun Subcomponent Launcher Improved Grenade Launcher Special Weapon Molecular Deconstructor Piercing Weapon CR-A16's Pointy Stick Build | -11 -10 -10 -9 -9 -9 -8 -8 -7 -7 -7 -7 -6 -6 -5 -5 -5 -5 ------- Run | Yrd Mat Min Mat Min Exi Min Mat Fac Low Low Zio Pro Fac Fac Was Fac Gar Slots Evolved 10 | . . . 2 . . . 2 2 . . . . 2 2 . . . Power 1 | . . . . . . . . . . . . . . 1 . . . Propulsion 2 | . . . 1 . . . . . . . . . 1 . . . . Utility 5 | . . . 1 . . . 1 1 . . . . 1 1 . . . Weapon 2 | . . . . . . . 1 1 . . . . . . . . . Parts Attached 98 | 7 5 6 7 3 . 5 20 15 8 . . 3 9 1 1 7 1 Power 13 | 1 . 1 1 1 . . 2 2 1 . . . 1 . . 2 1 Engine 12 | 1 . 1 1 1 . . 2 2 1 . . . 1 . . 1 1 Core 1 | . . . . . . . . . . . . . . . . 1 . Reactor . | . . . . . . . . . . . . . . . . . . Propulsion 27 | 2 1 3 3 1 . 2 4 7 . . . . 1 . . 3 . Treads 19 | 2 1 3 3 1 . 2 2 5 . . . . . . . . . Leg 2 | . . . . . . . 2 . . . . . . . . . . Wheel 5 | . . . . . . . . 1 . . . . 1 . . 3 . Hover 1 | . . . . . . . . 1 . . . . . . . . . Flight . | . . . . . . . . . . . . . . . . . . Utility 29 | 2 3 . 1 1 . 2 7 5 3 . . . 4 1 . . . Device 8 | 1 1 . . . . 1 2 . 1 . . . 1 1 . . . Storage 4 | 1 2 . . . . . . 1 . . . . . . . . . Processor 3 | . . . . . . . 2 . . . . . 1 . . . . Hackware . | . . . . . . . . . . . . . . . . . . Protection 14 | . . . 1 1 . 1 3 4 2 . . . 2 . . . . Artifact . | . . . . . . . . . . . . . . . . . . Weapon 29 | 2 1 2 2 . . 1 7 1 4 . . 3 3 . 1 2 . Energy Gun 4 | . 1 . . . . . 3 . . . . . . . . . . Energy Cannon 3 | . . . 1 . . . . . . . . 1 . . 1 . . Ballistic Gun 17 | 2 . 2 1 . . . 2 1 4 . . . 3 . . 2 . Ballistic Cannon . | . . . . . . . . . . . . . . . . . . Launcher 3 | . . . . . . 1 2 . . . . . . . . . . Special Weapon 1 | . . . . . . . . . . . . 1 . . . . . Impact Weapon . | . . . . . . . . . . . . . . . . . . Slashing Weapon . | . . . . . . . . . . . . . . . . . . Piercing Weapon 1 | . . . . . . . . . . . . 1 . . . . . Special Melee Weapon . | . . . . . . . . . . . . . . . . . . Unidentified Prototypes 8 | . . . 3 . . . . . 1 . 1 2 1 . . . . Parts Lost 45 | . 1 . 1 2 . 5 5 2 2 . 1 . 3 . 2 14 7 Power 10 | . . . 1 1 . . 1 . 1 . . . . . 1 3 2 Propulsion 11 | . . . . . . 3 2 1 . . . . . . . 3 2 Utility 12 | . . . . 1 . 2 1 1 1 . . . 3 . . 3 . Weapon 12 | . 1 . . . . . 1 . . . 1 . . . 1 5 3 Highest Loss Streak 7 | . 1 . 1 2 . 5 4 2 2 . 1 . 2 . 2 7 7 To Critical Strikes 2 | . . . . . . . . . . . . . . . . . 2 Average Backups 11 | 5 13 14 18 19 17 13 15 19 20 18 20 20 19 19 19 13 9 Power 1 | . 2 2 1 1 1 1 . . 1 1 1 1 1 1 1 . . Propulsion 3 | 3 1 1 1 2 3 . 1 1 4 4 4 4 3 3 3 1 . Utility 2 | . 4 7 4 4 4 3 4 7 7 6 6 6 4 1 1 1 1 Weapon 4 | . 3 3 10 11 9 9 8 9 7 7 9 9 10 14 14 10 8 Tool/Special . | . . . . . . . . . . . . . . . . . . Unused Backups 37 | . 7 2 6 . 4 . . 8 . . . 2 2 . . . 6 Power 4 | . . 1 2 . . . . 1 . . . . . . . . . Propulsion 8 | . 5 . . . . . . 3 . . . . . . . . . Utility 10 | . 1 . 2 . 1 . . 4 . . . . 1 . . . 1 Weapon 15 | . 1 1 2 . 3 . . . . . . 2 1 . . . 5 Tool/Special . | . . . . . . . . . . . . . . . . . . Average Slot Usage (%) 85 | . 99 99 99 100 100 97 94 72 70 84 84 83 85 87 79 57 34 Engine 8 | . 14 14 10 11 11 11 9 7 7 7 7 7 6 11 9 6 . Treads 14 | . 28 28 33 33 33 32 20 18 5 . . . . . . . . Leg 1 | . . . . . . . 5 2 . . . . . . . . . Wheel 3 | . . . . . . . . . 7 7 7 7 13 11 11 11 8 Device 7 | . 13 14 11 11 11 8 4 4 1 7 7 7 5 10 11 6 . Storage 8 | . 14 14 11 11 11 11 9 7 7 7 7 7 6 5 5 5 5 Processor 5 | . . . . . . . 9 7 7 7 7 7 6 5 5 5 5 Protection 11 | . . . 10 11 11 11 8 15 14 15 15 15 19 17 14 2 . Energy Gun 3 | . 11 7 . . . . 10 . . . . . . . . . . Energy Cannon 1 | . . . 7 11 11 6 . . . . . . . . 7 . 1 Ballistic Gun 17 | . 16 19 14 11 11 11 16 7 17 30 30 29 25 23 10 11 7 Peak Build Rating 83 | 7 8 12 19 19 22 23 34 76 76 59 60 66 75 82 83 73 35 Average Rating 24 | 5 7 9 17 18 21 22 30 63 69 59 59 59 73 81 75 56 29 On Entrance 39 | . 7 8 12 19 19 22 23 34 76 59 59 60 61 75 82 53 35 Avg Prop Armor Cover (%) 3 | . . . . . . . 4 3 4 . . . . . . . . Naked Turns . | . . . . . . . . . . . . . . . . . . Heaviest Build 157 | 14 30 34 59 59 59 59 76 132 132 117 117 123 129 144 157 126 105 Greatest Support 60 | 40 40 40 60 60 60 60 60 60 28 28 28 28 56 56 56 56 56 Greatest Overweight (x) 4 | 3 . . . . . . 1 4 4 4 4 4 2 2 2 3 3 Average Overweight (x) 1 | . . . . . . . . 1 4 4 4 3 2 2 2 1 1 Largest Inventory Capacity 25 | 8 20 15 20 20 20 20 20 25 25 25 25 25 25 25 25 25 25 Average Capacity 14 | 7 13 15 19 20 20 20 20 22 25 25 25 25 25 25 25 25 25 Most Carried 25 | 6 15 15 20 20 20 20 20 25 25 22 25 25 25 24 23 22 10 Average Carried 12 | 5 13 14 18 18 19 16 18 19 24 22 24 24 23 23 23 15 9 Final Capacity 25 | 8 15 15 20 20 20 20 20 25 25 25 25 25 25 25 25 25 25 Final Carried 25 | 6 15 15 20 19 20 16 17 25 22 22 25 25 25 23 23 10 9 Class Distribution -------------------- 64% | Mutant 18% | Tank 7% | Scavenger-Tank 5% | Scavenger-Skirmisher Dominant Class ---------------- Mutant | -10/Materials Mutant | -10/Mines Scavenger-Mutant | -9/Materials Mutant | -9/Mines Mutant | -9/Exiles Scavenger-Mutant | -8/Mines Scavenger-Skirmisher | -8/Materials Scavenger-Tank | -7/Factory Tank | -7/Lower Caves Tank | -7/Lower Caves Tank | -7/Zion Tank | -6/Proximity Caves Tank | -6/Factory Tank | -5/Factory Tank | -5/Waste Tank | -5/Factory Mutant | -5/Garrison Resources | -11 -10 -10 -9 -9 -9 -8 -8 -7 -7 -7 -7 -6 -6 -5 -5 -5 -5 ----------- Run | Yrd Mat Min Mat Min Exi Min Mat Fac Low Low Zio Pro Fac Fac Was Fac Gar Matter Collected 4729 | 227 427 89 264 47 . 91 501 1099 898 18 42 64 587 135 . 121 119 Remotely . | . . . . . . . . . . . . . . . . . . Salvage Created 6525 | 16 603 . 566 135 . 140 920 1505 1126 . . 37 1034 . 219 105 119 Parts 342 | 4 39 . 51 5 . 6 51 82 45 . . 3 38 . 5 7 6 Haulers Intercepted 10 | . 2 . 2 . . . 2 . . . . . 4 . . . . Recyclers Shooed 6 | . 3 . . . . . 2 . . . . . 1 . . . . Parts Field Recycled . | . . . . . . . . . . . . . . . . . . Retrieved Matter . | . . . . . . . . . . . . . . . . . . Parts Self-Destructed 49 | . . . . . . . . . 43 . . 6 . . . . . Prevented . | . . . . . . . . . . . . . . . . . . Parts Restored . | . . . . . . . . . . . . . . . . . . Kills | -11 -10 -10 -9 -9 -9 -8 -8 -7 -7 -7 -7 -6 -6 -5 -5 -5 -5 ------- Run | Yrd Mat Min Mat Min Exi Min Mat Fac Low Low Zio Pro Fac Fac Was Fac Gar Combat Hostiles Destroyed 119 | . 14 . 14 3 . 3 14 28 23 . . 2 9 . 1 6 2 Melee 1 | . . . . . . . . . . . . 1 . . . . . Guns 101 | . 14 . 9 1 . 2 9 28 23 . . 1 9 . 1 3 1 Cannons 8 | . . . 5 2 . 1 . . . . . . . . . . . AOE 4 | . . . . . . . 4 . . . . . . . . . . Classes Destroyed 19 | 1 6 . 2 1 . . 3 2 2 . . 1 . . 1 . . Worker 3 | . . . . . . . 2 1 . . . . . . . . . Builder 3 | . 1 . 1 . . . . . . . . . 1 . . . . Tunneler 3 | 1 . . . . . . 2 . . . . . . . . . . Hauler 10 | . 2 . 2 . . . 2 . . . . . 4 . . . . Recycler 2 | . . . . . . . 2 . . . . . . . . . . Operator 4 | . 2 . 1 . . . . 1 . . . . . . . . . Drone 1 | . . . . . . . . . . . . 1 . . . . . Watcher 11 | . 3 . 1 . . . 3 2 . . . . 2 . . . . Swarmer 28 | . 7 . 6 . . . . 6 5 . . . . . . 4 . Grunt 52 | . 7 . 4 2 . 3 11 8 10 . . . 4 . . 1 2 Brawler 5 | . . . . 1 . . . . 4 . . . . . . . . Duelist 5 | . . . 1 . . . . 3 1 . . . . . . . . Sentry 12 | . . . 3 . . . 2 5 1 . . . 1 . . . . Hunter 3 | . . . . . . . 1 . . . . . 2 . . . . Programmer 6 | . . . . . . . . 4 . . . . 2 . . . . Heavy 3 | . . . . . . . . 2 . . . . . . . 1 . Behemoth 2 | . . . . . . . . . 1 . . 1 . . . . . Compactor 1 | . . . . . . . . . . . . . . . 1 . . Thief 1 | . . . . . . . . . 1 . . . . . . . . Best Kill Streak 9 | 1 3 . 4 3 . 3 7 7 9 . . 1 5 . 1 4 2 Combat Bots Only 9 | . 3 . 4 3 . 3 4 7 9 . . 1 3 . 1 4 2 Max Kills in Single Turn 2 | 1 1 . 2 1 . 1 2 2 2 . . 1 1 . 1 1 1 Gunslinging 1 | . . . . . . . . . 1 . . . . . . . . Exploded 2 | . . . . . . . 2 . . . . . . . . . . Melee 1 | . . . . . . . . . . . . 1 . . . . . Uniques/NPCs Destroyed . | . . . . . . . . . . . . . . . . . . Combat | -11 -10 -10 -9 -9 -9 -8 -8 -7 -7 -7 -7 -6 -6 -5 -5 -5 -5 -------- Run | Yrd Mat Min Mat Min Exi Min Mat Fac Low Low Zio Pro Fac Fac Was Fac Gar Hostile Shots Fired 670 | . 63 . 49 28 . 55 92 77 65 17 . 15 56 . 4 79 70 Missed 168 | . 16 . 15 2 . 5 27 26 18 5 . 4 19 . . 21 10 Hits 502 | . 47 . 34 26 . 50 65 51 47 12 . 11 37 . 4 58 60 Melee 23 | . . . . 5 . . . 4 10 . . . . . 4 . . Projectile 479 | . 47 . 34 21 . 50 65 47 37 12 . 11 37 . . 58 60 AOE 4 | . . . . . . . . . . . . . . . . 4 . Critical Strikes 19 | . 1 . . 1 . . 4 2 4 . . . . . 2 2 3 Damage Taken 9128 | . 470 17 394 369 . 665 1107 745 901 86 . 308 540 . 192 2101 1233 Core 1448 | . 55 17 39 52 . 26 85 27 75 . . 25 41 . . 452 554 Absorbed by Shields 48 | . . . . . . . . . . . . . 8 . 16 24 . Redirected to Shielding 22 | . . . . . . 16 6 . . . . . . . . . . Regen/Repaired (Parts) 11 | . 11 . . . . . . . . . . . . . . . . Core Remaining (%) 83 | 100 . 71 . . . 70 84 . . . . 81 95 . . . . Volleys Fired 415 | 1 66 1 37 8 . 18 51 61 60 . 1 3 48 . 28 18 14 Largest 4 | 2 2 2 2 2 . 2 3 1 4 . 4 4 4 . 4 1 2 Hottest 211 | 40 70 70 91 91 . 91 149 60 80 . 80 80 93 . 211 15 88 Shots Fired 930 | 2 132 2 74 16 . 26 134 61 154 1 4 12 192 . 81 19 20 Gun 826 | 2 132 2 49 8 . 18 127 61 154 1 4 12 192 . 38 11 15 Cannon 89 | . . . 25 8 . 8 . . . . . . . . 43 . 5 Launcher 7 | . . . . . . . 7 . . . . . . . . . . Special 8 | . . . . . . . . . . . . . . . . 8 . Kinetic 723 | 2 83 1 49 8 . 18 74 61 154 1 4 12 192 . 38 11 15 Thermal 172 | . 49 1 25 8 . 8 53 . . . . . . . 28 . . Explosive 7 | . . . . . . . 7 . . . . . . . . . . Electromagnetic 20 | . . . . . . . . . . . . . . . 15 . 5 Robot Hit Streak 16 | 1 10 1 8 7 . 12 13 13 14 . . 6 10 . 16 4 5 Robot Miss Streak 10 | . 4 1 2 2 . 1 3 6 10 . . 1 4 . 2 1 3 Penetration Max 1 | . . . . . . . . . . . . . 1 . 1 . . Secondary Targets 11 | . . . . . . . 2 . 7 . . . 2 . . . . Max Gunslinging Chain 1 | . . . . . . . 1 . 1 . . . 1 . . . . Shots Hit Robots 608 | 1 77 1 44 12 . 20 93 58 96 . . 8 111 . 62 13 12 Core Hits 285 | 1 35 . 23 4 . 8 50 55 47 . . 3 40 . 12 4 3 Critical Kills 3 | . . . . . . . . . . . . . 2 . 1 . . Critical Parts Destroyed 2 | . . . . . . . . . . . . . 2 . . . . Critical Strikes 20 | . 5 . . . . . 4 . . . . . 4 . 7 . . Burn 9 | . 5 . . . . . 4 . . . . . . . . . . Destroy 11 | . . . . . . . . . . . . . 4 . 7 . . Melee Attacks 6 | . . . . . . . . . . . . 6 . . . . . Impact . | . . . . . . . . . . . . . . . . . . Slashing . | . . . . . . . . . . . . . . . . . . Piercing 6 | . . . . . . . . . . . . 6 . . . . . Sneak Attacks . | . . . . . . . . . . . . . . . . . . Combat Hostiles . | . . . . . . . . . . . . . . . . . . Follow-up Attacks . | . . . . . . . . . . . . . . . . . . Damage Inflicted 15699 | 13 933 26 832 224 . 325 2277 3690 3122 . . 295 2169 . 1256 259 278 Guns 13104 | 13 913 20 488 75 . 221 1548 3667 3122 . . 124 2123 . 472 160 158 Cannons 1496 | . . . 339 149 . 104 . . . . . . . . 784 . 120 Explosions 686 | . . . . . . . 686 . . . . . . . . . . Melee 171 | . . . . . . . . . . . . 171 . . . . . Ramming 242 | . 20 6 5 . . . 43 23 . . . . 46 . . 99 . Kinetic 11950 | 13 522 8 488 75 . 221 797 3667 3122 . . 124 2123 . 472 160 158 Thermal 2491 | . 391 12 339 149 . 104 751 . . . . . . . 745 . . Explosive 686 | . . . . . . . 686 . . . . . . . . . . Electromagnetic 159 | . . . . . . . . . . . . . . . 39 . 120 Impact . | . . . . . . . . . . . . . . . . . . Slashing . | . . . . . . . . . . . . . . . . . . Piercing 171 | . . . . . . . . . . . . 171 . . . . . Highest Corruption 5 | . 4 4 . 2 2 2 . . 5 5 5 . 2 . . 4 4 Average Corruption 3 | . 3 4 . 2 2 2 . . 5 5 5 . 2 . . 4 4 Corruption Purged . | . . . . . . . . . . . . . . . . . . Corruption Blocked . | . . . . . . . . . . . . . . . . . . Effects 70 | . 19 12 . 2 9 4 . . 4 9 . . 4 . . 3 4 Message Errors 17 | . 3 4 . 1 1 2 . . . 3 . . 1 . . 1 1 Matter Fused 14 | . 7 1 . . . 1 . . 2 2 . . . . . . 1 Heat Flow Errors 11 | . 2 1 . . 1 1 . . 1 2 . . 1 . . 1 1 Energy Discharges 13 | . 3 3 . . 6 . . . . 1 . . . . . . . Parts Rejected 1 | . . 1 . . . . . . . . . . . . . . . Data Loss (minor) 7 | . 4 . . 1 1 . . . . . . . 1 . . . . Data Loss (major) 2 | . . 1 . . . . . . . . . . 1 . . . . Misfires 3 | . . . . . . . . . . 1 . . . . . 1 1 Alerts 2 | . . 1 . . . . . . 1 . . . . . . . . Overload Shots . | . . . . . . . . . . . . . . . . . . Overflow Damage 74 | . . . 9 . . . . . . . . 9 24 . . 9 23 Projectiles 32 | . . . 9 . . . . . . . . . . . . . 23 Explosions . | . . . . . . . . . . . . . . . . . . Melee 42 | . . . . . . . . . . . . 9 24 . . 9 . Knockbacks 4 | . . . . . . . . 2 . . . . . . . 2 . Impact 4 | . . . . . . . . 2 . . . . . . . 2 . Kinetic . | . . . . . . . . . . . . . . . . . . Secondary . | . . . . . . . . . . . . . . . . . . Self-Inflicted Damage 184 | . . . . . . . 115 . . . . . 23 . . 46 . Shots 4 | . . . . . . . 4 . . . . . . . . . . Rammed 29 | . 6 2 . . . . 4 4 . . . . 1 . . 12 . Targets Rammed 33 | . 7 2 1 . . . 5 5 . . . . 1 . . 12 . Kicked . | . . . . . . . . . . . . . . . . . . Crushed 4 | . 1 . 1 . . . 1 1 . . . . . . . . . Highest Temperature 513 | . 186 272 96 268 96 303 366 513 462 236 43 49 217 . 387 198 222 Average Temperature 111 | . 39 114 34 136 55 179 114 135 193 109 24 26 48 . 100 100 40 Received Heat Transfer 2289 | . 156 9 117 126 . 306 549 117 246 . . 48 135 . . 165 315 Effects 22 | . . . . . . . 5 1 14 . . . . . 2 . . Shutdowns 5 | . . . . . . . 1 1 3 . . . . . . . . Energy Bleed 3 | . . . . . . . . . 3 . . . . . . . . Interference 6 | . . . . . . . 3 . 1 . . . . . 2 . . Damage (minor) 2 | . . . . . . . 1 . 1 . . . . . . . . Damage (major) 6 | . . . . . . . . . 6 . . . . . . . . Siege Activations . | . . . . . . . . . . . . . . . . . . Martial Activations . | . . . . . . . . . . . . . . . . . . Shielding Activations . | . . . . . . . . . . . . . . . . . . Robots Disrupted . | . . . . . . . . . . . . . . . . . . Combat Hostiles . | . . . . . . . . . . . . . . . . . . Robots Corrupted 3 | . . . . . . . . . . . . . 1 . . 1 1 Combat Hostiles 2 | . . . . . . . . . . . . . . . . 1 1 Parts Fried 4 | . . . . . . . . . . . . . 2 . . 1 1 Impact Corruptions 2 | . . . . . . . . . . . . . 1 . . 1 . Robots Melted 1 | . . . . . . . 1 . . . . . . . . . . Combat Hostiles 1 | . . . . . . . 1 . . . . . . . . . . Parts Melted 7 | . 2 . 1 1 . . 1 . . . . . 2 . . . . Heat Transferred 4514 | . 1517 37 592 259 . 185 1924 . . . . . . . . . . Parts Sabotaged . | . . . . . . . . . . . . . . . . . . Parts Stolen 1 | . . . . . . . . . 1 . . . . . . . . Parts Stripped . | . . . . . . . . . . . . . . . . . . Power Chain Reactions . | . . . . . . . . . . . . . . . . . . Alert | -11 -10 -10 -9 -9 -9 -8 -8 -7 -7 -7 -7 -6 -6 -5 -5 -5 -5 ------- Run | Yrd Mat Min Mat Min Exi Min Mat Fac Low Low Zio Pro Fac Fac Was Fac Gar Maximum Alert Level 2 | . . . . . . . 1 2 . . . . . . . . . Low Security (%) 95 | 100 100 100 100 100 . 100 81 65 . . . . 100 100 100 100 100 Level 1 2 | . . . . . . . 18 17 . . . . . . . . . Level 2 1 | . . . . . . . . 17 . . . . . . . . . Level 3 . | . . . . . . . . . . . . . . . . . . Level 4 . | . . . . . . . . . . . . . . . . . . Level 5 . | . . . . . . . . . . . . . . . . . . High Security . | . . . . . . . . . . . . . . . . . . Max Security . | . . . . . . . . . . . . . . . . . . Peak Influence 460 | 5 110 . 186 110 . 30 246 460 . . . . 81 30 6 83 65 Initial 97 | . 3 . . 70 . . . 97 . . . . . 30 . . 45 Average 25 | . 30 . 74 90 . 4 58 153 . . . . 22 5 . 15 43 Influence Increases 3629 | 5 458 . 558 70 . 70 533 759 495 15 . 51 293 19 14 199 90 Destroy 0b10 Robot/C 2400 | . 280 . 360 60 . 60 280 560 440 . . 20 180 . . 120 40 Destroy 0b10 Robot/NC 200 | 5 40 . 35 . . . 55 20 . . . 10 35 . . . . Destroy Leader 544 | . 60 . 90 10 . 10 80 154 40 . . 10 70 . . 20 . Allied During Kill 59 | . . . 42 . . . . . . . . 11 6 . . . . Successful Hack 110 | . 33 . 30 . . . 14 . . . . . . 19 . 14 . Disable Machine 75 | . . . . . . . 60 15 . . . . . . . . . Anti-Garrison Action 50 | . . . . . . . . . . . . . . . . . 50 Destroy Structure 71 | . . . 1 . . . 44 10 . . . . 2 . 14 . . Lose Combat Pursuer 120 | . 45 . . . . . . . 15 15 . . . . . 45 . Influence Decreases 3584 | . 463 . 378 160 90 70 319 517 683 258 25 51 230 82 14 134 110 Entered New Map 618 | . 2 . . 110 90 . . 117 169 52 25 . . 33 . . 20 Time Decay 2644 | . 451 . 328 30 . 40 279 380 494 206 . 51 210 49 12 114 . Lost Part 262 | . 10 . 10 20 . 30 40 20 20 . . . 20 . 2 20 70 Lost Ally 60 | . . . 40 . . . . . . . . . . . . . 20 Squads Dispatched 27 | . 2 . 3 . . . 3 12 . . . . 5 . . 2 . Investigation 4 | . . . 1 . . . 1 . . . . . 2 . . . . Extermination 6 | . . . . . . . . 4 . . . . 1 . . 1 . Reinforcement 13 | . 2 . 2 . . . 2 5 . . . . 1 . . 1 . Assault . | . . . . . . . . . . . . . . . . . . Garrison 4 | . . . . . . . . 3 . . . . 1 . . . . Intercept . | . . . . . . . . . . . . . . . . . . Searches Triggered . | . . . . . . . . . . . . . . . . . . Construction Impeded 2 | . . . . . . . 1 1 . . . . . . . . . Haulers Reinforced 1 | . . . . . . . . . . . . . 1 . . . . Active Scanning Responses . | . . . . . . . . . . . . . . . . . . Cargo Convoy Interrupts 1 | . . . . . . . . 1 . . . . . . . . . Stealth | -11 -10 -10 -9 -9 -9 -8 -8 -7 -7 -7 -7 -6 -6 -5 -5 -5 -5 --------- Run | Yrd Mat Min Mat Min Exi Min Mat Fac Low Low Zio Pro Fac Fac Was Fac Gar Distress Signals 4 | . 1 . 1 . . . 2 . . . . . . . . . . Communications Jammed . | . . . . . . . . . . . . . . . . . . Distress Signals . | . . . . . . . . . . . . . . . . . . Times Spotted 195 | . 29 1 29 3 . 7 30 30 24 2 . 2 15 . 6 12 5 Peak Tracking Total 9 | . 5 2 4 3 . 4 6 4 9 1 . 1 3 . 5 5 3 Tactical Retreats 6 | . 2 . . . . . . . 1 1 . . . . . 2 . Traps | -11 -10 -10 -9 -9 -9 -8 -8 -7 -7 -7 -7 -6 -6 -5 -5 -5 -5 ------- Run | Yrd Mat Min Mat Min Exi Min Mat Fac Low Low Zio Pro Fac Fac Was Fac Gar Traps Triggered 10 | . 2 . . . . . . 2 . . . . 5 1 . . . Indirectly . | . . . . . . . . . . . . . . . . . . Trap Hack Attempts . | . . . . . . . . . . . . . . . . . . Triggered . | . . . . . . . . . . . . . . . . . . Disarmed . | . . . . . . . . . . . . . . . . . . Reprogrammed . | . . . . . . . . . . . . . . . . . . Reused . | . . . . . . . . . . . . . . . . . . Traps Extracted . | . . . . . . . . . . . . . . . . . . Installed . | . . . . . . . . . . . . . . . . . . Triggered . | . . . . . . . . . . . . . . . . . . Machines | -11 -10 -10 -9 -9 -9 -8 -8 -7 -7 -7 -7 -6 -6 -5 -5 -5 -5 ---------- Run | Yrd Mat Min Mat Min Exi Min Mat Fac Low Low Zio Pro Fac Fac Was Fac Gar Machines Disabled 7 | . . . . . . . 4 1 . . . 1 . . . . 1 Max in Single Turn 1 | . . . . . . . 1 1 . . . 1 . . . . 1 Garrison Access 1 | . . . . . . . 1 . . . . . . . . . . Garrison Relay 1 | . . . . . . . . . . . . . . . . . 1 Machines Repaired . | . . . . . . . . . . . . . . . . . . Machines Dismantled . | . . . . . . . . . . . . . . . . . . Machines Sabotaged . | . . . . . . . . . . . . . . . . . . Overloaded Fab Kills . | . . . . . . . . . . . . . . . . . . Hacking | -11 -10 -10 -9 -9 -9 -8 -8 -7 -7 -7 -7 -6 -6 -5 -5 -5 -5 --------- Run | Yrd Mat Min Mat Min Exi Min Mat Fac Low Low Zio Pro Fac Fac Was Fac Gar Machines Accessed 38 | . 9 . 5 . 4 . 6 5 1 . 1 . 4 2 . 1 . Terminals 21 | . 7 . 5 . . . 3 2 . . . . 2 2 . . . Fabricators 2 | . . . . . . . . . . . . . 2 . . . . Repair Stations 2 | . 1 . . . . . 1 . . . . . . . . . . Recycling Units 1 | . 1 . . . . . . . . . . . . . . . . Scanalyzers 3 | . . . . . . . 1 2 . . . . . . . . . Garrison Access 3 | . . . . . . . 1 1 . . . . . . . 1 . Total Hacks 109 | . 26 . 16 . 27 . 18 7 1 . 3 . 7 3 . 1 . Successful 66 | . 16 . 5 . 27 . 7 2 1 . 3 . 2 2 . 1 . Failed 40 | . 9 . 11 . . . 10 4 . . . . 5 1 . . . Catastrophic 6 | . . . 2 . . . 1 2 . . . . . 1 . . . Database Lockouts 3 | . 1 . . . . . 1 1 . . . . . . . . . Manual 57 | . 21 . 16 . 1 . 10 2 . . 5 1 . 1 . . . Terminals 57 | . 21 . 16 . . . 12 2 . . . . 3 3 . . . Fabricators 4 | . . . . . . . . . . . . . 4 . . . . Repair Stations 7 | . 4 . . . . . 3 . . . . . . . . . . Recycling Units 1 | . 1 . . . . . . . . . . . . . . . . Scanalyzers 6 | . . . . . . . 2 4 . . . . . . . . . Garrison Access 3 | . . . . . . . 1 1 . . . . . . . 1 . Terminal Hacks 39 | . 2 . 2 . 27 . 2 . 1 . 3 . . 2 . . . Record 26 | . . . . . 26 . . . . . . . . . . . . Part Schematic 3 | . . . . . . . . . . . 3 . . . . . . Robot Analysis 4 | . 2 . 1 . . . 1 . . . . . . . . . . Prototype ID Bank 2 | . . . . . . . 1 . . . . . . 1 . . . Open Door 1 | . . . . . . . . . 1 . . . . . . . . Open DSF 1 | . . . . . . . . . . . . . . 1 . . . Branch Access Points 1 | . . . 1 . . . . . . . . . . . . . . Proto ID Catalog 1 | . . . . . 1 . . . . . . . . . . . . Fabricator Hacks 2 | . . . . . . . . . . . . . 2 . . . . Load Schematic 1 | . . . . . . . . . . . . . 1 . . . . Build 1 | . . . . . . . . . . . . . 1 . . . . Repair Station Hacks 3 | . 2 . . . . . 1 . . . . . . . . . . Scan Component 2 | . 1 . . . . . 1 . . . . . . . . . . Repair 1 | . 1 . . . . . . . . . . . . . . . . Recycling Unit Hacks 1 | . 1 . . . . . . . . . . . . . . . . Retrieve Components 1 | . 1 . . . . . . . . . . . . . . . . Scanalyzer 2 | . . . . . . . . 2 . . . . . . . . . Insert Component 1 | . . . . . . . . 1 . . . . . . . . . Retrieve Study 1 | . . . . . . . . 1 . . . . . . . . . Garrison Access Hacks 2 | . . . . . . . 1 . . . . . . . . 1 . Unlock Access 1 | . . . . . . . . . . . . . . . . 1 . Seal Access 1 | . . . . . . . 1 . . . . . . . . . . Unauthorized Hacks 17 | . 11 . 3 . . . 3 . . . . . . . . . . Terminals 17 | . 11 . 3 . . . 3 . . . . . . . . . . Botnet 11 | . 5 . 3 . . . 3 . . . . . . . . . . Skim 6 | . 6 . . . . . . . . . . . . . . . . Fabricators . | . . . . . . . . . . . . . . . . . . Repair Stations . | . . . . . . . . . . . . . . . . . . Recycling Units . | . . . . . . . . . . . . . . . . . . Scanalyzers . | . . . . . . . . . . . . . . . . . . Garrison Access . | . . . . . . . . . . . . . . . . . . Data Cores Recovered . | . . . . . . . . . . . . . . . . . . Used . | . . . . . . . . . . . . . . . . . . Hacking Detections 25 | . 7 . 5 . . . 4 3 . . . . 4 1 . 1 . Full Trace Events 4 | . . . 2 . . . 1 . . . . . 1 . . . . Feedback Events . | . . . . . . . . . . . . . . . . . . Feedback Blocked . | . . . . . . . . . . . . . . . . . . Robot Schematics Acquired 2 | . . . . . . . . . . . 2 . . . . . . Robots Built . | . . . . . . . . . . . . . . . . . . Authchips . | . . . . . . . . . . . . . . . . . . Time . | . . . . . . . . . . . . . . . . . . Total Robot Build Rating . | . . . . . . . . . . . . . . . . . . Part Schematics Acquired 19 | . . . . . . . . . . . 19 . . . . . . Parts Built 2 | . . . . . . . . . . . . . 2 . . . . Authchips . | . . . . . . . . . . . . . . . . . . Time 117 | . . . . . . . . . . . . . 117 . . . . Total Part Build Rating 14 | . . . . . . . . . . . . . 14 . . . . Part Studies Acquired 1 | . . . . . . . . 1 . . . . . . . . . Parts Repaired 1 | . 1 . . . . . . . . . . . . . . . . Time 26 | . 26 . . . . . . . . . . . . . . . . Parts Recycled . | . . . . . . . . . . . . . . . . . . Recycled Matter . | . . . . . . . . . . . . . . . . . . Retrieved Matter . | . . . . . . . . . . . . . . . . . . Retrieved Components 9 | . 9 . . . . . . . . . . . . . . . . Parts Scanalyzed . | . . . . . . . . . . . . . . . . . . Part Schematics Acquired . | . . . . . . . . . . . . . . . . . . Parts Damaged . | . . . . . . . . . . . . . . . . . . Bothacking | -11 -10 -10 -9 -9 -9 -8 -8 -7 -7 -7 -7 -6 -6 -5 -5 -5 -5 ------------ Run | Yrd Mat Min Mat Min Exi Min Mat Fac Low Low Zio Pro Fac Fac Was Fac Gar Used RIF Installer . | . . . . . . . . . . . . . . . . . . Robots Hacked . | . . . . . . . . . . . . . . . . . . Non-combat . | . . . . . . . . . . . . . . . . . . Combat . | . . . . . . . . . . . . . . . . . . Robot Hacks Applied . | . . . . . . . . . . . . . . . . . . Relay Couplers Released 3 | . . . . . . . . . . . . . . . . . 3 Machine Destruction 3 | . . . . . . . . . . . . . . . . . 3 Fabnet Peak Effective % . | . . . . . . . . . . . . . . . . . . Robots Rewired . | . . . . . . . . . . . . . . . . . . Allies Hacked . | . . . . . . . . . . . . . . . . . . Hacks Repelled . | . . . . . . . . . . . . . . . . . . Allies | -11 -10 -10 -9 -9 -9 -8 -8 -7 -7 -7 -7 -6 -6 -5 -5 -5 -5 -------- Run | Yrd Mat Min Mat Min Exi Min Mat Fac Low Low Zio Pro Fac Fac Was Fac Gar Total Allies 6 | . . 3 . . . . . . . . 2 . . . . . 1 Largest Group 3 | . . 3 2 . . . . . . . 2 2 1 . . . . Highest-Rated Group 192 | . . 40 32 . . . . . . . 192 192 89 . . . . Highest-Rated Ally 96 | . . 16 16 . . . . . . . 96 96 89 . . . . Total Orders . | . . . . . . . . . . . . . . . . . . Ally Attacks 69 | . . 3 49 . . . . . . . . 16 . . . . 1 Total Damage 1353 | . . 46 515 . . . . . . . . 754 . . . . 38 Kills 8 | . . 1 6 . . . . . . . . 1 . . . . . Allies Corrupted 1 | . . . . . . . . . . . . . 1 . . . . Allies Melted . | . . . . . . . . . . . . . . . . . . Intel | -11 -10 -10 -9 -9 -9 -8 -8 -7 -7 -7 -7 -6 -6 -5 -5 -5 -5 ------- Run | Yrd Mat Min Mat Min Exi Min Mat Fac Low Low Zio Pro Fac Fac Was Fac Gar Active Infowar (turns) 4188 | 29 1951 502 883 76 731 16 . . . . . . . . . . . Seismic 4188 | 29 1951 502 883 76 731 16 . . . . . . . . . . . Robot Analysis Total 4 | . 2 . 1 . . . 1 . . . . . . . . . . Derelict Logs Recovered 6 | . . 1 . . . . . . 3 1 . 1 . . . . . Drone Launches . | . . . . . . . . . . . . . . . . . . Drone Recoveries . | . . . . . . . . . . . . . . . . . . Exploration | -11 -10 -10 -9 -9 -9 -8 -8 -7 -7 -7 -7 -6 -6 -5 -5 -5 -5 ------------- Run | Yrd Mat Min Mat Min Exi Min Mat Fac Low Low Zio Pro Fac Fac Was Fac Gar Turns Passed 32774 | 17130 1982 502 883 76 731 199 1974 2665 1315 434 2091 600 862 260 347 549 174 Spaces Moved 9198 | 1346 1001 302 451 31 455 93 754 984 757 272 1301 341 466 199 109 239 97 Core 17 | 17 . . . . . . . . . . . . . . . . . Treads 5326 | 1329 1001 302 451 31 455 93 754 910 . . . . . . . . . Legs . | . . . . . . . . . . . . . . . . . . Wheels 3855 | . . . . . . . . 74 757 272 1301 341 466 199 109 239 97 Hover . | . . . . . . . . . . . . . . . . . . Flight . | . . . . . . . . . . . . . . . . . . Fastest Speed 50 | 50 160 160 160 160 160 160 160 160 160 160 160 145 130 130 130 115 115 Average Speed 168 | 159 160 160 160 160 160 160 230 224 160 160 160 159 130 130 130 118 119 Slowest Speed 269 | 200 160 160 160 160 160 160 240 269 160 160 160 160 130 130 130 145 145 Overloaded Moves . | . . . . . . . . . . . . . . . . . . Propulsion Burnouts . | . . . . . . . . . . . . . . . . . . Robots Hopped . | . . . . . . . . . . . . . . . . . . Potential Cave-ins . | . . . . . . . . . . . . . . . . . . Cave-ins Triggered . | . . . . . . . . . . . . . . . . . . Exploration Rate (%) 44 | 111 94 48 40 5 87 12 44 18 79 33 87 39 12 4 72 6 11 Regions Visited 17 Branch Regions 8 Pre-discovered Areas 1 | . . . . . . . . . . 1 . . . . . . . Known Exits Taken 5 | . . 1 1 . 1 . . . 1 . . . . . . 1 . Unknown Exits Taken 10 | 1 1 . . 1 . 1 1 1 . 1 1 1 1 . . . . Scrap Searched 10 | . . . . . . 1 . . 2 2 3 2 . . . . . Spaces Dug 20 | . . . . . . . 17 . . . . . . . 3 . . Terrain Destroyed 64 | . . . . . . . 47 6 3 . . . . . 8 . . Melee . | . . . . . . . . . . . . . . . . . . Projectile 17 | . . . . . . . . 6 3 . . . . . 8 . . AOE 47 | . . . . . . . 47 . . . . . . . . . . Terrain Rammed . | . . . . . . . . . . . . . . . . . . Walls Destroyed . | . . . . . . . . . . . . . . . . . . Machines Disabled . | . . . . . . . . . . . . . . . . . . Actions | -11 -10 -10 -9 -9 -9 -8 -8 -7 -7 -7 -7 -6 -6 -5 -5 -5 -5 --------- Run | Yrd Mat Min Mat Min Exi Min Mat Fac Low Low Zio Pro Fac Fac Was Fac Gar Total 25926 | 16321 1254 320 541 41 460 116 871 1440 842 271 1311 384 687 201 252 477 137 Wait 15962 | 14962 144 . 12 . . . 21 326 12 . . 18 137 . 114 194 22 Move 9182 | 1345 1000 301 450 30 454 92 753 983 756 271 1300 340 465 199 108 238 97 Hop . | . . . . . . . . . . . . . . . . . . Pick Up 77 | 6 18 3 14 . 2 . 6 18 1 . 4 . 5 . . . . Fast Attach 56 | 7 1 2 6 . . 1 10 10 4 . 1 5 3 . . 3 3 Attach 40 | . 1 1 2 2 . 4 6 2 3 . 2 . 4 2 . 10 1 Detach 14 | . . . . . . . 1 4 . . 2 4 2 . . 1 . Swap 37 | . 6 3 4 1 . 1 9 4 1 . . 2 3 . 2 1 . Drop 82 | . 11 7 15 . 4 . 9 25 1 . 1 6 3 . . . . Fire 415 | 1 66 1 37 8 . 18 51 61 60 . 1 3 48 . 28 18 14 Melee 6 | . . . . . . . . . . . . 6 . . . . . Ram 13 | . . . . . . . . . . . . . 1 . . 12 . Kick . | . . . . . . . . . . . . . . . . . . Crush 20 | . 7 2 1 . . . 5 5 . . . . . . . . . Escape Stasis 18 | . . . . . . . . 2 . . . . 16 . . . . Rewire 4 | . . . . . . . . . 4 . . . . . . . . Trap . | . . . . . . . . . . . . . . . . . . Miscellaneous . | . . . . . . . . . . . . . . . . . . Route ------- -11/Scrapyard -10/Materials (discovered 5 exits: *Mat x3 / [*Min] / [*Sub]) -10/Mines -9/Materials (discovered 3 exits: *Min / *Sto x2) -9/Mines -9/Exiles (discovered 2 exits: *Min x2) -8/Mines -8/Materials -7/Factory -7/Lower Caves -7/Lower Caves -7/Zion -6/Proximity Caves -6/Factory -5/Factory -5/Waste -5/Factory -5/Garrison History --------- Turn | Location | Event 21 | -11/Scrapyard | Discovered new exit (range 15) 17131 | -11/Scrapyard | Entered Materials 17132 | -10/Materials | Build established: Mutant 17364 | -10/Materials | Discovered new exit (range 10) 17783 | -10/Materials | Discovered new exit (range 15) 18044 | -10/Materials | Discovered new exit (range 16) 18531 | -10/Materials | Repaired Seismic Detector 18585 | -10/Materials | Discovered new exit (range 16) 18596 | -10/Materials | Central database locked down 18675 | -10/Materials | Loaded intel: 8 terminal locations 18743 | -10/Materials | Learned Storage emergency access door positions 18800 | -10/Materials | Identified exit to Materials 18847 | -10/Materials | Learned 2 Storage zone layouts 18932 | -10/Materials | Learned 4 Subcaves zone layouts 19002 | -10/Materials | Learned 2 Mines zone layouts 19054 | -10/Materials | Learned Materials stockpile data 19113 | -10/Materials | Entered Mines 19177 | -10/Mines | Assisted by bots powering up and referring to "LRC-V3" 19232 | -10/Mines | Received a Rocket Launcher from a helpful Derelict 19342 | -10/Mines | Learned Materials terminal intel 19355 | -10/Mines | Joined a pair of Derelicts in attacking an 0b10 outpost 19583 | -10/Mines | Discovered exit to Materials (range 12) 19589 | -10/Mines | Found a hidden stash of uninstalled traps 19615 | -10/Mines | Entered Materials 19615 | -9/Materials | Accompanied by 2 allies 19615 | -9/Materials | Evolved 2 slots: Propulsion x1, Utility x1 19616 | -9/Materials | Identified exit to Mines 19618 | -9/Materials | Loaded intel: 12 terminal locations 19690 | -9/Materials | Build established: Scavenger-Mutant 19712 | -9/Materials | Discovered new exit (range 14) 20384 | -9/Materials | Build established: Mutant 20391 | -9/Materials | Identified exit to Storage 20498 | -9/Materials | Entered Mines 20518 | -9/Mines | Met a Derelict bent on vengeance 20561 | -9/Mines | Deemed a non-threat by the Exiles lab entrance 20563 | -9/Mines | Discovered new exit (range 5) 20574 | -9/Mines | Entered Exiles 20575 | -9/Exiles | Identified exit to Mines 20613 | -9/Exiles | Met 8R-AWN 20640 | -9/Exiles | Met EX-HEX 20683 | -9/Exiles | Met EX-BIN 20706 | -9/Exiles | Aligned with FarCom system 20707 | -9/Exiles | Given EX-Vault access code 20776 | -9/Exiles | Opened EX-Vault 20794 | -9/Exiles | Found XL Autogun Array 20828 | -9/Exiles | Warned to stay clear of 0b10 Research branches 20886 | -9/Exiles | Met EX-DEC 20983 | -9/Exiles | Visited The Gauntlet 21282 | -9/Exiles | Discovered exit to Mines (range 12) 21305 | -9/Exiles | Left Exiles lab with XL Autogun Array 21305 | -9/Exiles | Entered Mines 21368 | -8/Mines | Lost 5 parts (3n2u) 21487 | -8/Mines | Discovered new exit (range 9) 21504 | -8/Mines | Entered Materials 21504 | -8/Materials | Evolved 2 slots: Utility x1, Weapon x1 22066 | -8/Materials | Build established: Scavenger-Skirmisher 23137 | -8/Materials | Lost 4 parts (1p1n1u1w) 23365 | -8/Materials | Discovered new exit (range 12) 23430 | -8/Materials | Central database locked down 23478 | -8/Materials | Entered Factory 23478 | -7/Factory | Evolved 2 slots: Utility x1, Weapon x1 23787 | -7/Factory | Build established: Scavenger-Tank 24733 | -7/Factory | Cargo convoy interrupted 25188 | -7/Factory | Garrison activated, responded to threat 25236 | -7/Factory | Destroyed 7 combat bots 25763 | -7/Factory | Central database locked down 26109 | -7/Factory | Discovered new exit (range 15) 26143 | -7/Factory | Entered Lower Caves 26315 | -7/Lower Caves | Build established: Tank 26516 | -7/Lower Caves | Learned Factory stockpile data 26851 | -7/Lower Caves | Spotted B-75 Beast 26863 | -7/Lower Caves | Destroyed B-75 Beast 26887 | -7/Lower Caves | Learned Factory terminal intel 27230 | -7/Lower Caves | Attracted the attention of an 0b10 outpost 27302 | -7/Lower Caves | Destroyed 9 combat bots 27328 | -7/Lower Caves | Identified exit to Lower Caves 27458 | -7/Lower Caves | Entered another Lower Caves area 27710 | -7/Lower Caves | Spotted B-75 Beast 27881 | -7/Lower Caves | Learned location of Zion (-7) 27881 | -7/Lower Caves | Discovered new exit (range 6) 27892 | -7/Lower Caves | Entered Zion 27969 | -7/Zion | System corruption cleaned by Quarantine Array 28162 | -7/Zion | Found Prototype Launcher 28162 | -7/Zion | Identified Gui. Missile Launcher 28371 | -7/Zion | Found CR-A16's Pointy Stick 28637 | -7/Zion | Given A8's code to call for help 28815 | -7/Zion | Loaded intel: 6 derelict terminal locations 28927 | -7/Zion | Rebuked by Imprinter 29468 | -7/Zion | Discovered new exit (range 11) 29487 | -7/Zion | Received a hallucinogenic algorithm 29487 | -7/Zion | Ran a hallucination algorithm 29489 | -7/Zion | Ran a hallucination algorithm 29494 | -7/Zion | Enhanced Grunt warped into view, answering call for help 29496 | -7/Zion | Enhanced Grunt warped into view, answering call for help 29505 | -7/Zion | Ran a hallucination algorithm 29529 | -7/Zion | Ran a hallucination algorithm 29983 | -7/Zion | Entered Proximity Caves 29983 | -6/Proximity Caves | Accompanied by 2 allies 30188 | -6/Proximity Caves | Spotted B-75 Beast 30230 | -6/Proximity Caves | Destroyed B-75 Beast 30445 | -6/Proximity Caves | Acquired the password to a Derelict Tinkerer's latest research 30465 | -6/Proximity Caves | Found Prototype Special Weapon 30465 | -6/Proximity Caves | Identified Molecular Deconstructor 30559 | -6/Proximity Caves | Discovered new exit (range 4) 30583 | -6/Proximity Caves | Entered Factory 30583 | -6/Factory | Accompanied by 1 ally 30583 | -6/Factory | Evolved 2 slots: Propulsion x1, Utility x1 30585 | -6/Factory | Loaded intel: 26 terminal locations 30740 | -6/Factory | Fabricated HERF Cannon? 31040 | -6/Factory | Allied Derelicts emerged from ambush trap array 31218 | -6/Factory | Garrison activated, responded to threat 31382 | -6/Factory | Discovered new exit (range 9) 31445 | -6/Factory | Entered another Factory area 31445 | -5/Factory | Evolved 2 slots: Power x1, Utility x1 31671 | -5/Factory | Identified exit to DSF 31705 | -5/Factory | Sucked down chute 31705 | -5/Factory | Entered Waste 31724 | -5/Waste | Spotted C-40 Crusher 31724 | -5/Waste | Spotted C-40 Crusher 31800 | -5/Waste | Spotted C-40 Crusher 31818 | -5/Waste | Destroyed C-40 Crusher 31856 | -5/Waste | Spotted C-40 Crusher 31858 | -5/Waste | Spotted C-40 Crusher 31861 | -5/Waste | Spotted C-40 Crusher 31961 | -5/Waste | Crushed by Compactor (1 part destroyed, 1 dropped) 31964 | -5/Waste | Crushed by Compactor (0 parts destroyed, 1 dropped) 31966 | -5/Waste | Crushed by Compactor (1 part destroyed) 31969 | -5/Waste | Crushed by Compactor (0 parts destroyed, 2 dropped) 32038 | -5/Waste | Discovered new exit (range 11) 32052 | -5/Waste | Entered Factory 32345 | -5/Factory | Lost 7 parts (1p1n2u3w) 32477 | -5/Factory | Lost 5 parts (1p2n1u1w) 32591 | -5/Factory | Identified exit to Garrison 32601 | -5/Factory | Entered Garrison 32693 | -5/Garrison | Triggered checkpoint 32713 | -5/Garrison | Core integrity fell below 50% 32723 | -5/Garrison | Rescued a captive Derelict 32742 | -5/Garrison | Garrison Relay disabled 32745 | -5/Garrison | Build established: Mutant 32769 | -5/Garrison | Core integrity fell below 20% 32775 | -5/Garrison | Destroyed by H-66 Slayer with Gauss Rifle Last Messages --------------- 32742_ Relay Coupler [NC] tumbles out of relay unit. 32742_ Relay Coupler [Brawler] tumbles out of relay unit. 32745_ Slug penetrates Wall. 32746_ Acquired Relay Coupler [Brawler]. 32746_ Relay Coupler [Brawler] fries itself. 32752_ Acquired Unknown Hackware. 32752_ Identified Relay Coupler [Grunt]. 32752_ Relay Coupler [Grunt] fries itself. 32755_ Penetrated by Slug. 32758_ Slug penetrates Garrison Relay. 32759_ Penetrated by Slug. 32759_ Critical hit (Destroy). 32759_ Arm. Huge Wheel destroyed. 32759_ Slug penetrates Reinforced Barrier. 32760_ HERF Cannon destroyed. 32760_ Penetrated by Slug. 32774_ System corrupted: Heat flow error (+253). 32775_ Penetrated by Slug. Map ----- +----------------------------------------------------+ | | | | | | | | | | | | | | | | | | | | | | | ??????????????????????????????????? | | ??????????????????????????????????? | | ??????????????????????????????????? | | ??????????????????????????????????? | | ??????????????????????????????????? | | ??????????????????????????????????? | | ??????????????????????????????????? | | ??????????????????????????????????? | | ??????????????????????????????????? | | ??????????????????????????????????? | | ????????######????????????????????? | | ????????# # #????????????????????? | | ????????# ! #????????????????????? | | ????????# #????????????????????? | | ????????# @ #????????????????????? | | ????????#"#Yh#????????????????????? | | ????????###Y ###??????????????????? | | ??????????# #??????????????????? | | ??????????# #??????????????????? | | ??????????#=! #??????????????????? | | ??????????#==###??????????????????? | | ??????????# =#????????????????????? | | ??????????# ###################### | | ??????##"## | | ??????#T ! ^^ h | | ??????##%############ ######### | | ???????%????????????# #???????# | | ??????#?????????????#####???????# | | ????????????????????????????????# | | ????????????????????????????????# | | ????????????????????????????????# | | ????????????????????????????????# | | ????????????????????????????????# | | ????????????????????????????????# | | ????????????????????????????????# | | ????????????????????????????????# | | ????????????????????????????????# | | ????????????????????????????????# | | ????????????????????????????????# | +----------------------------------------------------+ Best States ------------- Heat Dissipation 59 Energy Generation 27 Energy Capacity 480 Matter Stores 300 Matter Capacity 300 Sight Range 16 Terrain Scan Density 10 Armor Coverage 825 Propulsion Shielding 33 Weapon Shielding 33 Evasion (%) 40 Targeting Accuracy 8 Recoil Reduction 3 Item Schematics ----------------- Imp. Reaction Control System | -7/Zion | Archive Force Booster | -7/Zion | Archive Matter Filter | -7/Zion | Archive Nuclear Pulse Thruster | -7/Zion | Archive Shock Absorption System | -7/Zion | Archive Power Sword | -7/Zion | Archive Gauss Rifle | -7/Zion | Archive Imp. Plasma Cutter | -7/Zion | Archive Hvy. Shock Bomb Launcher | -7/Zion | Archive Flak Gun | -7/Zion | Archive Adv. Signal Interpreter | -7/Zion | Archive Coil Gun | -7/Zion | Archive Great Axe | -7/Zion | Archive Component Analysis Suite | -7/Zion | Archive Hpw. Shock Rifle | -7/Zion | Archive HERF Cannon | -7/Zion | Archive Riot Gun | -7/Zion | Free Barrage Gun | -7/Zion | Free Enh. Flamer | -7/Zion | Free Robot Schematics ------------------ S-27 Virus | -7/Zion | Archive B-48 Gladiator | -7/Zion | Archive Fabricated ------------ HERF Cannon | x2 | -6/Factory Repaired ---------- Seismic Detector | 45% | -10/Materials Studied --------- Lgt. Treads | -7/Factory | Hacked Alien Tech Used ----------------- None Achievements -------------- Deconstruction Help From High Places Challenges ------------ None Game ------ Seed BlanketFrostHammer Manual? 0 Play Time 01:41:04 Cumulative 31.3 hours Start 2026.01.17 @ 11:19:04 End 2026.01.17 @ 12:59:58 Sessions 1 Manual Loads 0 Difficulty Rogue Special Mode None Game No. 37 Rogue 37 Adventurer 0 Explorer 0 Win Type - Total 0 Types 0/0/0/0/0/0/0/0/0/0 Lore% 18 Gallery% 27 Achievement% 27 Wizard Run 0 Options --------- Layout 1 ASCII 0 Keyboard 0 Movement Arrows Keybinds 0 Fullscreen 2 Font 32/SmallcapsGlow Map View 50x35 Zoom Use 0% Tactical HUD 1 Map Filters NONE Filters NONE Steam 1 RUN: 817b4ff2-66dd-4b08-9cfc-ff847a31ee81